[Event "XVI Memorial Ezequiel Martin 2024"]
[Site "Mollet"]
[Date "2024.06.09"]
[Round "8.4"]
[White "Salinas Tomas, Daniel"]
[Black "Hernandez, Cristian Andres"]
[Result "0-1"]
[ECO "E20"]
[WhiteElo "2355"]
[BlackElo "2350"]
[Annotator "RC"]
[PlyCount "114"]
[EventDate "2024.06.01"]
[EventType "swiss"]
[EventCountry "ESP"]
[SourceTitle "playchess.com"]
[Source "ChessBase"]
[SourceQuality "1"]
[TimeControl "900+5"]

1. d4 {[%emt 0:00:03]} Nf6 {[%emt 0:00:03]} 2. c4 {[%emt 0:00:02]} e6 {[%emt 0:00:01]} 3. g3 {[%emt 0:00:01]} d5 {[%emt 0:00:01]} 4. Nf3 {[%emt 0:00:01]} Bb4+ {[%emt 0:00:02]} 5. Nc3 {[%emt 0:00:02]} O-O {[%emt 0:00:15]} 6. Bg2 {[%emt 0:00:01]} dxc4 {[%emt 0:00:02]} 7. O-O {[%emt 0:00:03]} c6 {[%emt 0:00:21]} 8. Ne5 {[%emt 0:00:28]} Nd5 {[%emt 0:00:24]} 9. Ne4 {[%emt 0:02:26]} b5 {[%emt 0:00:02]} 10. Bd2 {[%emt 0:01:01]} Be7 {[%emt 0:00:07]} 11. Rc1 {[%emt 0:00:23]} Qb6 {[%emt 0:00:48]} 12. e3 {[%emt 0:00:29]} Nd7 {[%emt 0:00:05]} 13. Nxd7 {[%emt 0:00:11]} Bxd7 {[%emt 0:00:01]} 14. b3 {[%emt 0:00:01]} cxb3 {[%emt 0:00:06]} 15. Qxb3 {[%emt 0:00:02]} Rfd8 {[%emt 0:14:02]} 16. Rc2 {[%emt 0:01:02]} Be8 {[%emt 0:00:00]} 17. Rfc1 {[%emt 0:00:06]} a5 {[%emt 0:00:00]} 18. Nc5 {[%emt 0:00:17]} a4 {[%emt 0:00:00]} 19. Qb1 {[%emt 0:00:32]} h6 {[%emt 0:00:00]} 20. Nd3 {[%emt 0:02:07]} Ba3 {[%emt 0:00:00]} 21. Rd1 {[%emt 0:00:02]} Bf8 {[%emt 0:00:00]} 22. e4 {[%emt 0:00:42]} Nf6 {[%emt 0:00:00]} 23. Be3 {[%emt 0:00:23]} Ng4 {[%emt 0:00:00]} 24. e5 {[%emt 0:00:15]} Nxe3 {[%emt 0:00:00]} 25. fxe3 {[%emt 0:06:30]} b4 {[%emt 0:00:00]} 26. Nc5 {[%emt 0:00:00]} Ra5 {[%emt 0:00:00]} 27. Rdc1 {[%emt 0:00:00]} Rb8 {[%emt 0:00:00]} 28. Nd3 {[%emt 0:00:00]} b3 {[%emt 0:00:00]} 29. Rc3 {[%emt 0:00:00]} b2 {[%emt 0:00:00]} 30. R1c2 {[%emt 0:00:00]} a3 {[%emt 0:00:00]} 31. Bxc6 {[%emt 0:00:00]} Bxc6 {[%emt 0:00:00]} 32. Rxc6 {[%emt 0:00:00]} Qb5 {[%emt 0:00:00]} 33. R2c3 {[%emt 0:00:00]} Qb7 {[%emt 0:00:00]} 34. Kf2 {[%emt 0:00:00]} Raa8 {[%emt 0:00:00]} 35. e4 {[%emt 0:00:00]} Rd8 {[%emt 0:00:00]} 36. Ke3 {[%emt 0:00:00]} Qa7 {[%emt 0:00:00]} 37. R3c4 {[%emt 0:00:00]} Rd7 {[%emt 0:00:00]} 38. Nf4 {[%emt 0:00:00]} Rad8 {[%emt 0:00:00]} 39. Ne2 {[%emt 0:00:00]} Qb7 {[%emt 0:00:00]} 40. Rc3 {[%emt 0:00:00]} Qb5 {[%emt 0:00:00]} 41. R6c4 {[%emt 0:00:00]} Bb4 {[%emt 0:00:00]} 42. Rc2 {[%emt 0:00:05]} Be7 {[%emt 0:00:00]} 43. R4c3 {[%emt 0:00:21]} Bg5+ {[%emt 0:00:00]} 44. Kf3 {[%emt 0:00:11]} Be7 {[%emt 0:00:00]} 45. Rb3 {[%emt 0:00:07]} Qa6 {[%emt 0:00:00]} 46. Qd1 {[%emt 0:00:24]} Qa4 {[%emt 0:00:00]} 47. Ke3 {[%emt 0:00:29]} Bg5+ {[%emt 0:00:13]} 48. Kf3 {[%emt 0:00:01]} Rxd4 {[%emt 0:00:07]} 49. Nxd4 {[%emt 0:00:01]} Rxd4 {[%emt 0:00:01]} 50. Rc8+ {[%emt 0:00:11]} Kh7 {[%emt 0:00:01]} 51. Qc2 {[%emt 0:00:02]} Rd2 {[%emt 0:00:14]} 52. Qb1 {[%emt 0:00:09]} Qd4 {[%emt 0:00:05]} 53. Qf1 {[%emt 0:00:12]} Rd1 {[%emt 0:00:13]} 54. Qb5 {[%emt 0:00:05]} Re1 {[%emt 0:00:27]} 55. Rc4 {[%emt 0:00:01]} Qd1+ {[%emt 0:00:06]} 56. Kg2 {[%emt 0:00:04]} Rg1+ {[%emt 0:00:11]} 57. Kf2 {[%emt 0:00:08]} Qf1# {[%emt 0:00:02]} 0-1

[Event "XVI Memorial Ezequiel Martin 2024"]
[Site "Mollet"]
[Date "2024.06.09"]
[Round "8.5"]
[White "Vehi Bach, Victor Manuel"]
[Black "Valenzuela Gomez, Fernando"]
[Result "0-1"]
[ECO "B90"]
[WhiteElo "2215"]
[BlackElo "2358"]
[Annotator "RC"]
[PlyCount "60"]
[EventDate "2024.06.01"]
[EventType "swiss"]
[EventCountry "ESP"]
[SourceTitle "playchess.com"]
[Source "ChessBase"]
[SourceQuality "1"]
[TimeControl "900+5"]

1. e4 {[%emt 0:00:01]} c5 {[%emt 0:00:02]} 2. Nf3 {[%emt 0:00:02]} d6 {[%emt 0:00:02]} 3. d4 {[%emt 0:00:01]} cxd4 {[%emt 0:00:02]} 4. Nxd4 {[%emt 0:00:01]} Nf6 {[%emt 0:00:01]} 5. Nc3 {[%emt 0:00:01]} a6 {[%emt 0:00:04]} 6. h3 {[%emt 0:00:02]} e5 {[%emt 0:00:02]} 7. Nb3 {[%emt 0:00:01]} Be7 {[%emt 0:00:02]} 8. g4 {[%emt 0:00:02]} h6 {[%emt 0:00:01]} 9. Be3 {[%emt 0:00:02]} Be6 {[%emt 0:00:05]} 10. Qf3 {[%emt 0:00:13]} Nbd7 {[%emt 0:00:03]} 11. O-O-O {[%emt 0:00:05]} Rc8 {[%emt 0:00:02]} 12. Nd5 {[%emt 0:00:09]} Nf8 {[%emt 0:00:05]} 13. Kb1 {[%emt 0:00:54]} Ng6 {[%emt 0:00:10]} 14. Bd3 {[%emt 0:00:09]} Nh7 {[%emt 0:00:52]} 15. Qe2 {[%emt 0:00:19]} Bg5 {[%emt 0:01:06]} 16. c4 {[%emt 0:02:16]} O-O {[%emt 0:00:42]} 17. f3 {[%emt 0:01:44]} Bxe3 {[%emt 0:00:07]} 18. Qxe3 {[%emt 0:00:17]} Nf6 {[%emt 0:02:30]} 19. h4 {[%emt 0:00:27]} Nd7 {[%emt 0:02:09]} 20. g5 {[%emt 0:01:46]} h5 {[%emt 0:00:13]} 21. Rc1 {[%emt 0:01:16]} a5 {[%emt 0:00:10]} 22. Bf1 {[%emt 0:00:33]} a4 {[%emt 0:00:33]} 23. Nd2 {[%emt 0:00:00]} Nb8 {[%emt 0:01:13]} 24. Bh3 {[%emt 0:00:06]} Nc6 {[%emt 0:00:11]} 25. f4 {[%emt 0:00:42]} exf4 {[%emt 0:00:32]} 26. Nxf4 {[%emt 0:00:10]} Nxf4 {[%emt 0:00:06]} 27. Qxf4 {[%emt 0:00:01]} a3 {[%emt 0:00:20]} 28. b3 {[%emt 0:01:30]} Qb6 {[%emt 0:00:17]} 29. Nf3 {[%emt 0:00:33]} Na5 {[%emt 0:01:58]} 30. e5 {[%emt 0:01:16]} Nxb3 {[%emt 0:00:34]} 0-1

[Event "XVI Memorial Ezequiel Martin 2024"]
[Site "Mollet"]
[Date "2024.06.09"]
[Round "8.6"]
[White "Sort Sererols, Josep"]
[Black "Ortega Serra, Marc"]
[Result "0-1"]
[ECO "C00"]
[WhiteElo "2053"]
[BlackElo "2292"]
[Annotator "RC"]
[PlyCount "51"]
[EventDate "2024.06.01"]
[EventType "swiss"]
[EventCountry "ESP"]
[SourceTitle "playchess.com"]
[Source "ChessBase"]
[SourceQuality "1"]
[TimeControl "900+5"]

1. e4 {[%emt 0:00:01]} e6 {[%emt 0:00:02]} 2. d3 {[%emt 0:00:05]} d5 {[%emt 0:00:02]} 3. Qe2 {[%emt 0:00:02]} e5 {[%emt 0:00:05]} 4. Nf3 {[%emt 0:00:11]} Nc6 {[%emt 0:00:03]} 5. exd5 {[%emt 0:00:01]} Qxd5 {[%emt 0:00:02]} 6. Nc3 {[%emt 0:00:01]} Qa5 {[%emt 0:00:30]} 7. g3 {[%emt 0:00:11]} Bg4 {[%emt 0:00:08]} 8. Bg2 {[%emt 0:00:05]} O-O-O {[%emt 0:00:38]} 9. h3 {[%emt 0:15:13]} Bh5 10. g4 {[%emt 0:00:00]} Bg6 {[%emt 0:00:03]} 11. O-O {[%emt 0:00:00]} h5 {[%emt 0:00:04]} 12. Bd2 {[%emt 0:00:00]} hxg4 {[%emt 0:00:29]} 13. hxg4 {[%emt 0:00:00]} Nf6 {[%emt 0:01:42]} 14. Ne4 {[%emt 0:00:00]} Qa6 {[%emt 0:00:07]} 15. Nxf6 {[%emt 0:00:00]} gxf6 {[%emt 0:00:02]} 16. Rfe1 {[%emt 0:00:00]} Bd6 {[%emt 0:00:23]} 17. b4 {[%emt 0:00:00]} Bxb4 {[%emt 0:00:13]} 18. Bxb4 {[%emt 0:00:00]} Nxb4 {[%emt 0:00:02]} 19. Rab1 {[%emt 0:00:00]} Nd5 {[%emt 0:00:07]} 20. Nd2 {[%emt 0:00:00]} Nf4 {[%emt 0:00:52]} 21. Qe3 {[%emt 0:00:00]} Nxg2 {[%emt 0:00:17]} 22. Kxg2 {[%emt 0:00:00]} f5 {[%emt 0:00:43]} 23. g5 {[%emt 0:00:00]} Qc6+ {[%emt 0:00:51]} 24. Qf3 {[%emt 0:00:00]} e4 {[%emt 0:00:04]} 25. dxe4 {[%emt 0:00:00]} Rxd2 {[%emt 0:00:12]} 26. Rh1 {[%emt 0:01:25]} 0-1

[Event "XVI Memorial Ezequiel Martin 2024"]
[Site "Mollet"]
[Date "2024.06.09"]
[Round "9.1"]
[White "Narciso Dublan, Marc"]
[Black "Hernandez, Cristian Andres"]
[Result "1-0"]
[ECO "B26"]
[WhiteElo "2432"]
[BlackElo "2350"]
[Annotator "RC"]
[PlyCount "71"]
[EventDate "2024.06.01"]
[EventType "swiss"]
[EventCountry "ESP"]
[SourceTitle "playchess.com"]
[Source "ChessBase"]
[SourceQuality "1"]
[TimeControl "900+5"]

1. e4 {[%emt 0:00:03]} c5 {[%emt 0:00:21]} 2. Nc3 {[%emt 0:00:04]} Nc6 {[%emt 0:00:06]} 3. g3 {[%emt 0:00:02]} g6 {[%emt 0:00:05]} 4. Bg2 {[%emt 0:00:01]} Bg7 {[%emt 0:00:01]} 5. d3 {[%emt 0:00:01]} e6 {[%emt 0:00:05]} 6. Be3 {[%emt 0:00:06]} Nd4 {[%emt 0:00:01]} 7. Nge2 {[%emt 0:00:31]} Ne7 {[%emt 0:00:05]} 8. O-O {[%emt 0:00:04]} O-O {[%emt 0:15:01]} 9. Qd2 {[%emt 0:14:58]} d6 {[%emt 0:00:05]} 10. Rae1 {[%emt 0:00:05]} Bd7 {[%emt 0:00:00]} 11. Nd1 {[%emt 0:00:00]} Nxe2+ {[%emt 0:00:00]} 12. Rxe2 {[%emt 0:00:00]} Rc8 {[%emt 0:00:00]} 13. Bh6 {[%emt 0:00:00]} b5 {[%emt 0:00:00]} 14. Bxg7 {[%emt 0:00:00]} Kxg7 {[%emt 0:00:00]} 15. Ne3 {[%emt 0:00:00]} e5 {[%emt 0:00:00]} 16. f4 {[%emt 0:00:00]} f6 {[%emt 0:00:00]} 17. Ref2 {[%emt 0:00:35]} Be6 {[%emt 0:00:00]} 18. h4 {[%emt 0:00:05]} exf4 {[%emt 0:00:00]} 19. gxf4 {[%emt 0:00:00]} f5 {[%emt 0:00:50]} 20. Re1 {[%emt 0:00:00]} h5 {[%emt 0:00:00]} 21. Nf1 {[%emt 0:00:15]} Qd7 {[%emt 0:00:00]} 22. Nh2 {[%emt 0:00:00]} d5 {[%emt 0:00:15]} 23. Nf3 {[%emt 0:00:10]} d4 {[%emt 0:00:05]} 24. Ng5 {[%emt 0:00:05]} Bg8 {[%emt 0:00:05]} 25. Bh3 {[%emt 0:00:05]} Rce8 {[%emt 0:00:05]} 26. Rfe2 {[%emt 0:00:05]} Bf7 {[%emt 0:00:05]} 27. Qa5 {[%emt 0:00:05]} Ng8 {[%emt 0:00:00]} 28. exf5 {[%emt 0:00:00]} gxf5 29. Re5 {[%emt 0:00:10]} Nh6 {[%emt 0:00:15]} 30. Rxc5 {[%emt 0:00:05]} Ng4 {[%emt 0:00:05]} 31. Bxg4 {[%emt 0:00:00]} fxg4 {[%emt 0:00:05]} 32. Rxe8 {[%emt 0:00:00]} Rxe8 33. Rc7 {[%emt 0:00:15]} Re1+ {[%emt 0:00:10]} 34. Kf2 {[%emt 0:00:05]} Qe8 {[%emt 0:00:05]} 35. Rxf7+ {[%emt 0:00:00]} Kg8 {[%emt 0:00:00]} 36. Qxe1 {[%emt 0:00:10]} 1-0

[Event "XVI Memorial Ezequiel Martin 2024"]
[Site "Mollet"]
[Date "2024.06.09"]
[Round "9.2"]
[White "Garriga Cazorla, Pere"]
[Black "Aloma Vidal, Robert"]
[Result "1-0"]
[ECO "A43"]
[WhiteElo "2471"]
[BlackElo "2428"]
[Annotator "TA"]
[PlyCount "120"]
[EventDate "2024.06.01"]
[EventType "swiss"]
[EventCountry "ESP"]
[SourceTitle "playchess.com"]
[Source "ChessBase"]
[SourceQuality "1"]
[TimeControl "900+5"]

{[%evp 34,120,98,105,116,92,93,33,62,38,52,29,72,57,108,36,126,91,146,110,132,125,179,142,118,100,92,70,73,22,95,130,114,111,202,156,188,188,210,95,97,89,89,96,254,248,228,254,235,252,241,156,152,149,181,169,210,226,329,322,377,373,379,370,366,362,734,734,594,179,481,72,72,72,5915,5389,29965,29967,29963,5604,29980,29980,29984,29985,29985,29986,29985,29986,29962]} 1. d4 {[%emt 0:00:02]} c5 {[%emt 0:00:01]} 2. d5 {[%emt 0:00:01]} g6 {[%emt 0:00:02]} 3. e4 {[%emt 0:00:01]} Bg7 {[%emt 0:00:01]} 4. Nc3 {[%emt 0:00:04]} d6 {[%emt 0:00:01]} 5. Bb5+ {[%emt 0:00:01]} Bd7 {[%emt 0:00:02]} 6. a4 {[%emt 0:00:01]} Nf6 {[%emt 0:00:02]} 7. Nf3 {[%emt 0:00:01]} O-O {[%emt 0:00:04]} 8. Nd2 {[%emt 0:00:02] A43: Schmid Benoni.} Ne8 {[%emt 0:00:24]} 9. Be2 $146 {[%emt 0:00:25]} ({Predecessor:} 9. O-O Nc7 10. Be2 Qe8 11. Nc4 b5 12. axb5 Bxb5 13. Nxb5 Qxb5 14. Nxd6 Qb6 15. Nc4 Qb7 {1-0 De Haan,E (2299)-Cawley,P (2070) Gibraltar Masters 13th 2015 (8)}) 9... Na6 {[%emt 0:00:48]} 10. O-O {[%emt 0:00:02]} Nb4 {[%emt 0:00:12]} 11. Nc4 {[%emt 0:00:11]} e6 {[%emt 0:00:46]} 12. Nb5 {[%emt 0:01:04]} exd5 {[%emt 0:01:26]} 13. exd5 {[%emt 0:00:01]} Bf5 {[%emt 0:00:41]} 14. Ne3 {[%emt 0:00:01]} Bc8 {[%emt 0:00:39]} 15. c3 {[%emt 0:00:28]} Na6 {[%emt 0:00:06]} 16. Nc4 {[%emt 0:00:05]} Nac7 {[%emt 0:00:12]} 17. Bf4 {[%emt 0:00:07]} Nxb5 {[%emt 0:01:04]} 18. axb5 {[%emt 0:00:01]} g5 {[%emt 0:00:07]} 19. Be3 {[%emt 0:01:19]} f5 {[%emt 0:00:10]} 20. f3 {[%emt 0:00:37]} (20. f4 $16 g4 21. b6) 20... Nc7 {[%emt 0:01:46]} 21. Na5 {[%emt 0:01:08]} Kh8 {[%emt 0:08:16]} 22. Qd2 {[%emt 0:00:15]} h6 {[%emt 0:00:00]} 23. Rfe1 {[%emt 0:00:24]} Qf6 {[%emt 0:00:00]} (23... Rb8 $14) 24. Bf1 {[%emt 0:00:25]} (24. f4 $16 g4 25. Bf2) 24... Qf7 {[%emt 0:00:00]} (24... f4 $1 $14 25. Bf2 h5) 25. Rad1 {[%emt 0:00:13]} Rb8 {[%emt 0:00:00]} (25... f4 $142) 26. b4 {[%emt 0:00:02]} cxb4 {[%emt 0:00:00]} 27. cxb4 {[%emt 0:00:02]} Ra8 {[%emt 0:00:00]} (27... Bd7 $16 {was worth a try.}) 28. Bd4 {[%emt 0:01:04]} Ne8 {[%emt 0:00:00]} 29. Bxg7+ {[%emt 0:00:45]} Qxg7 {[%emt 0:00:00]} 30. Rc1 {[%emt 0:00:47]} f4 {[%emt 0:00:00]} 31. Qc3 {[%emt 0:00:22]} (31. Re2 $16) 31... Rb8 {[%emt 0:00:00]} (31... Qxc3 $1 $11 32. Rxc3 Nf6) 32. Re7 $16 {[%emt 0:00:16]} Qxc3 {[%emt 0:00:00]} 33. Rxc3 {[%emt 0:00:01]} g4 {[%emt 0:00:00]} (33... Kg8 $16) 34. Bd3 {[%emt 0:00:28]} gxf3 {[%emt 0:00:00]} 35. gxf3 {[%emt 0:00:29]} Bf5 {[%emt 0:00:00] [#]} 36. Rxb7 {[%emt 0:01:45]} ({Worse is} 36. Nxb7 Rg8+ 37. Kf2 Bxd3 38. Rxd3 Rg7 39. Rxg7 Kxg7 $15) (36. Be4 $1 $18 {is the precise move to win.}) 36... Rxb7 $16 {[%emt 0:00:09]} 37. Nxb7 {[%emt 0:00:02]} Bxd3 {[%emt 0:00:09]} 38. Rxd3 {[%emt 0:00:00]} Kg7 $2 {[%emt 0:00:53]} (38... Rf7 $16 39. Nd8 Rd7) 39. Ra3 $18 {[%emt 0:00:21]} Nc7 {[%emt 0:00:13]} 40. Nxd6 {[%emt 0:00:11]} Nxd5 {[%emt 0:00:01]} 41. Rxa7+ {[%emt 0:04:56]} Kf6 42. Kf2 {[%emt 0:00:00]} Ke5 {[%emt 0:00:02]} 43. Nf7+ {[%emt 0:00:00]} Kd4 {[%emt 0:00:02]} 44. Nxh6 {[%emt 0:00:00]} Rh8 {[%emt 0:00:10]} 45. Ng4 {[%emt 0:00:00]} Nxb4 {[%emt 0:00:12]} (45... Kc4 {keeps fighting.} 46. b6 Nxb6) 46. b6 $18 {[%emt 0:00:00]} Nd3+ {[%emt 0:00:01]} 47. Ke2 {[%emt 0:00:00]} Re8+ {[%emt 0:00:05]} 48. Kd2 {[%emt 0:00:00]} Nc5 {[%emt 0:00:03]} 49. Rf7 {[%emt 0:00:40]} Ne6 $2 {[%emt 0:00:11]} (49... Rb8 50. Rxf4+ Kd5 51. Rf5+ Kc6 52. Rf6+ Kb5) 50. b7 $18 {[%emt 0:00:00]} Rb8 {[%emt 0:00:01]} 51. Nf6 $2 {[%emt 0:00:00]} (51. Rd7+ Kc5 52. h4) 51... Ng5 $2 {[%emt 0:00:01]} (51... Nc5 52. Ng4 Nxb7 53. Rxf4+ Kc5) 52. Rc7 $2 {[%emt 0:00:00]} ({Not} 52. Rd7+ Ke5 $16) (52. Re7 $18) 52... Nxf3+ $16 {[%emt 0:00:03]} 53. Ke2 {[%emt 0:00:00]} Ne5 $2 {[%emt 0:00:02][%mdl 8192]} (53... Nxh2 $16 54. Rh7 Kc4) 54. Nd7 $18 {[%emt 0:00:00]} Nxd7 {[%emt 0:00:20]} 55. Rxd7+ {[%emt 0:00:00]} Ke4 {[%emt 0:00:01]} 56. Kf2 {[%emt 0:00:00]} Rh8 {[%emt 0:00:05]} 57. h4 {[%emt 0:00:00]} Ke5 {[%emt 0:00:16]} 58. Rc7 {[%emt 0:00:00]} Rb8 {[%emt 0:00:00]} 59. h5 {[%emt 0:00:00]} Kd6 {[%emt 0:00:00]} 60. Rg7 {[%emt 0:00:00]} Kd5 {[%emt 0:00:15]} 1-0

[Event "XVI Memorial Ezequiel Martin 2024"]
[Site "Mollet"]
[Date "2024.06.09"]
[Round "9.3"]
[White "Valenzuela Gomez, Fernando"]
[Black "Ayats Llobera, Gerard"]
[Result "0-1"]
[ECO "B51"]
[WhiteElo "2358"]
[BlackElo "2466"]
[Annotator "TA"]
[PlyCount "50"]
[EventDate "2024.06.01"]
[EventType "swiss"]
[EventCountry "ESP"]
[SourceTitle "playchess.com"]
[Source "ChessBase"]
[SourceQuality "1"]
[TimeControl "900+5"]

{[%evp 17,50,23,32,2,32,37,0,26,22,0,0,-27,-25,-120,-108,-93,-100,-107,-99,-206,-198,-202,-215,-214,-184,-176,-186,-200,-202,-239,-214,-226,-210,-248,-264]} 1. e4 {[%emt 0:00:09]} c5 {[%emt 0:00:04]} 2. Nf3 {[%emt 0:00:02]} d6 {[%emt 0:00:08]} 3. Bb5+ {[%emt 0:00:09]} Nc6 {[%emt 0:00:54]} 4. O-O {[%emt 0:00:03]} Nf6 {[%emt 0:00:05]} 5. Re1 {[%emt 0:00:02]} Bd7 {[%emt 0:00:01]} 6. c3 {[%emt 0:00:10]} a6 {[%emt 0:00:06]} 7. Bf1 {[%emt 0:00:05]} Bg4 {[%emt 0:00:06]} 8. d4 {[%emt 0:01:00]} cxd4 {[%emt 0:00:02]} 9. cxd4 {[%emt 0:00:02]} d5 {[%emt 0:00:07]} 10. e5 {[%emt 0:00:48]} Ng8 {[%emt 0:00:04]} 11. e6 {[%emt 0:00:13]} Bxe6 {[%emt 0:00:05]} 12. Rxe6 {[%emt 0:00:03] The position is equal.} fxe6 {[%emt 0:00:01]} 13. g3 {[%emt 0:01:15] Black must now prevent Bh3.} g6 {[%emt 0:00:40]} 14. Bh3 {[%emt 0:00:09][%cal Of3g5]} Bh6 {[%emt 0:00:20]} 15. Ng5 {[%emt 0:00:56]} (15. Bg5 $11) 15... Bxg5 $17 {[%emt 0:01:16]} 16. Bxg5 {[%emt 0:00:02][%cal Ob1c3]} Qb6 {[%emt 0:01:24][%csl LRb2,LRd4]} 17. Nc3 {[%emt 0:01:26]} Qxd4 {[%emt 0:02:13]} 18. Qe2 {[%emt 0:02:29]} (18. Bxe6 $17 Qxd1+ 19. Rxd1) 18... Qe5 $19 {[%emt 0:00:29] Black is clearly better.} 19. Qd2 {[%emt 0:00:03]} Nf6 {[%emt 0:00:13]} 20. Re1 {[%emt 0:00:22]} Ne4 {[%emt 0:00:31]} 21. Nxe4 {[%emt 0:00:05]} dxe4 {[%emt 0:00:01]} 22. Bf4 {[%emt 0:00:28]} Qd5 {[%emt 0:00:24]} 23. Qc3 {[%emt 0:00:06]} O-O {[%emt 0:01:54][%cal Oc6d4] Hoping for ...Nd4!} 24. Bg2 {[%emt 0:00:05]} Qd3 {[%emt 0:00:15]} 25. Qc5 {[%emt 0:01:37]} Nd4 {[%emt 0:00:05] Weighted Error Value: White=0.27 (precise) /Black=0.07 (flawless) .  Mistake:       	White=2     	---        Inaccurate:     	White=1     	Black=1      OK:         	White=3     	Black=7      Best:        	White=1     	Black=2} 0-1

[Event "XVI Memorial Ezequiel Martin 2024"]
[Site "Mollet"]
[Date "2024.06.09"]
[Round "9.4"]
[White "Uber Gracia, Hugo"]
[Black "Lazaro Pujol, Abel"]
[Result "0-1"]
[ECO "D32"]
[WhiteElo "2220"]
[BlackElo "2356"]
[Annotator "RC"]
[PlyCount "37"]
[EventDate "2024.06.01"]
[EventType "swiss"]
[EventCountry "ESP"]
[SourceTitle "playchess.com"]
[Source "ChessBase"]
[SourceQuality "1"]
[TimeControl "900+5"]

1. c4 {[%emt 0:00:02]} e6 {[%emt 0:00:06]} 2. Nf3 {[%emt 0:00:02]} d5 {[%emt 0:00:01]} 3. e3 {[%emt 0:00:02]} Nf6 {[%emt 0:15:13]} 4. Nc3 {[%emt 0:00:05]} c5 {[%emt 0:00:00]} 5. cxd5 {[%emt 0:00:06]} exd5 {[%emt 0:00:00]} 6. d4 {[%emt 0:00:05]} Nc6 {[%emt 0:00:00]} 7. Bb5 {[%emt 0:00:02]} cxd4 {[%emt 0:00:00]} 8. Nxd4 {[%emt 0:00:05]} Bd7 {[%emt 0:00:00]} 9. O-O {[%emt 0:00:18]} Bd6 {[%emt 0:00:00]} 10. b3 {[%emt 0:00:36]} O-O {[%emt 0:00:00]} 11. Nf3 {[%emt 0:00:26]} Bg4 {[%emt 0:00:00]} 12. Be2 {[%emt 0:00:16]} Qa5 {[%emt 0:00:00]} 13. Bb2 {[%emt 0:00:17]} Rad8 {[%emt 0:00:00]} 14. Nd4 {[%emt 0:00:31]} Nxd4 {[%emt 0:00:00]} 15. Qxd4 {[%emt 0:01:02]} Bc5 {[%emt 0:00:00]} 16. Qf4 {[%emt 0:01:50]} d4 {[%emt 0:00:00]} 17. exd4 {[%emt 0:01:48]} Rxd4 {[%emt 0:00:00]} 18. Qg3 {[%emt 0:00:58]} Rd2 {[%emt 0:00:00]} 19. Rab1 {[%emt 0:04:34]} 0-1

[Event "XVI Memorial Ezequiel Martin 2024"]
[Site "Mollet"]
[Date "2024.06.09"]
[Round "9.5"]
[White "Ortega Serra, Marc"]
[Black "Masague Artero, Guerau"]
[Result "0-1"]
[ECO "E06"]
[WhiteElo "2292"]
[BlackElo "2345"]
[Annotator "RC"]
[PlyCount "114"]
[EventDate "2024.06.01"]
[EventType "swiss"]
[EventCountry "ESP"]
[SourceTitle "playchess.com"]
[Source "ChessBase"]
[SourceQuality "1"]
[TimeControl "900+5"]

1. d4 {[%emt 0:00:02]} Nf6 {[%emt 0:00:02]} 2. Nf3 {[%emt 0:00:08]} e6 {[%emt 0:00:02]} 3. g3 {[%emt 0:00:01]} d5 {[%emt 0:00:02]} 4. Bg2 {[%emt 0:00:01]} Be7 {[%emt 0:00:02]} 5. O-O {[%emt 0:00:03]} O-O {[%emt 0:00:02]} 6. c4 {[%emt 0:00:02]} a5 {[%emt 0:00:02]} 7. Qc2 {[%emt 0:01:17]} c6 {[%emt 0:00:03]} 8. Nbd2 {[%emt 0:00:13]} b6 {[%emt 0:00:05]} 9. e4 {[%emt 0:00:03]} Bb7 {[%emt 0:00:06]} 10. e5 {[%emt 0:00:31]} Nfd7 {[%emt 0:00:03]} 11. h4 {[%emt 0:01:02]} Na6 {[%emt 0:00:06]} 12. a3 {[%emt 0:00:08]} Rc8 {[%emt 0:00:01]} 13. cxd5 {[%emt 0:01:20]} cxd5 {[%emt 0:00:06]} 14. Qd3 {[%emt 0:00:01]} Nab8 {[%emt 0:01:13]} 15. Qe3 {[%emt 0:01:26]} Qc7 {[%emt 0:00:41]} 16. Re1 {[%emt 0:00:22]} Ba6 {[%emt 0:00:25]} 17. Ng5 {[%emt 0:00:24]} Qc2 {[%emt 0:00:31]} 18. Bh3 {[%emt 0:00:13]} Rc6 {[%emt 0:00:47]} 19. Qf3 {[%emt 0:01:10]} h6 {[%emt 0:00:38]} 20. Nge4 {[%emt 0:00:34]} dxe4 {[%emt 0:00:32]} 21. Nxe4 {[%emt 0:00:01]} Bd3 {[%emt 0:03:33]} 22. Nc3 {[%emt 0:01:27]} Bc4 {[%emt 0:02:33]} 23. Qg4 {[%emt 0:00:41]} Qg6 {[%emt 0:00:58]} 24. Qf4 {[%emt 0:00:02]} f6 {[%emt 0:00:30]} 25. exf6 {[%emt 0:01:31]} Nxf6 {[%emt 0:00:02]} 26. Bg2 {[%emt 0:02:07]} Ng4 {[%emt 0:01:27]} 27. Qe4 {[%emt 0:00:24]} Qxe4 {[%emt 0:00:15]} 28. Nxe4 {[%emt 0:00:02]} Bd5 {[%emt 0:00:04]} 29. Bf4 {[%emt 0:00:09]} Nd7 {[%emt 0:00:16]} 30. Bf1 {[%emt 0:00:31]} Rc2 {[%emt 0:00:18]} 31. Nc3 {[%emt 0:00:16]} Bb3 {[%emt 0:00:01]} 32. Bd3 {[%emt 0:01:01]} Rxb2 {[%emt 0:00:16]} 33. Reb1 {[%emt 0:00:08]} Rxb1+ {[%emt 0:00:45]} 34. Rxb1 {[%emt 0:00:00]} Bd5 {[%emt 0:00:06]} 35. Nxd5 {[%emt 0:00:02]} exd5 {[%emt 0:00:02]} 36. Bb5 {[%emt 0:00:00]} Ngf6 {[%emt 0:00:07]} 37. a4 {[%emt 0:00:01]} Rc8 {[%emt 0:00:08]} 38. Re1 {[%emt 0:00:02]} Bb4 {[%emt 0:00:06]} 39. Re2 {[%emt 0:00:12]} Kf7 {[%emt 0:00:06]} 40. g4 {[%emt 0:00:05]} Nf8 {[%emt 0:00:18]} 41. g5 {[%emt 0:00:14]} hxg5 {[%emt 0:00:04]} 42. hxg5 {[%emt 0:00:02]} Ne4 {[%emt 0:00:04]} 43. f3 {[%emt 0:00:06]} Nc3 {[%emt 0:00:23]} 44. Rc2 {[%emt 0:00:05]} Ne6 {[%emt 0:00:07]} 45. Be3 {[%emt 0:00:04]} Rc7 {[%emt 0:00:10]} 46. Bd3 {[%emt 0:00:15]} Nd1 {[%emt 0:00:08]} 47. Rxc7+ {[%emt 0:00:15]} Nxc7 {[%emt 0:00:01]} 48. Bf4 {[%emt 0:00:01]} Ne6 {[%emt 0:00:01]} 49. Be5 {[%emt 0:00:01]} Bc3 {[%emt 0:00:08]} 50. f4 {[%emt 0:00:06]} Bxd4+ {[%emt 0:00:02]} 51. Bxd4 {[%emt 0:00:04]} Nxd4 {[%emt 0:00:01]} 52. Kg2 {[%emt 0:00:03]} Nc3 {[%emt 0:00:56]} 53. f5 {[%emt 0:00:05]} Nxa4 {[%emt 0:00:00]} 54. Kg3 {[%emt 0:00:03]} Nc5 {[%emt 0:00:00]} 55. Bb1 {[%emt 0:00:01]} Ne2+ {[%emt 0:00:00]} 56. Kg4 {[%emt 0:00:06]} Nc3 {[%emt 0:00:00]} 57. Bc2 {[%emt 0:00:05]} d4 {[%emt 0:00:00]} 0-1